{"text_format":"3","workbook":"xlsx","n_sheets":5,"sheets":["Factuur","Klanten","Facturen - Hoofd","Factuurdetails","Over Deze Factuur Tracker"],"not_rendered":{"defined_names":8},"read":"whole","date_system":"1900"}

{"sheet":"Factuur","index":0,"n_rows":39,"n_cols":7,"rows_kept":39,"merged":[[1,1,1,2],[1,3,1,4],[1,5,1,6],[2,1,2,2],[2,3,2,4],[2,5,2,6],[3,3,3,4],[4,3,4,4],[5,3,5,4],[37,1,37,4],[38,1,38,4]]}
[null,"Bedrijfsnaam"]
[null,"Adres",null,"T: Telefoonnummer",null,"E-mail"]
[null,"Plaats, provincie, postcode",null,"F: Faxnummer",null,"Website"]
[null,"Factureren aan:",{"$f":"IFERROR(VLOOKUP(VLOOKUP(rngFactuur,FacturenHoofd[],2,FALSE),KlantenLijst[],3,TRUE),\"\")","v":"Contoso NV"},{"$f":"\"Telefoon: \"&IFERROR(VLOOKUP(VLOOKUP(rngFactuur,FacturenHoofd[],2,FALSE),KlantenLijst[],9,FALSE),\"\")","v":"Telefoon: 0432-5550189"},null,"Factuur #:","3-456-2"]
[null,"Adres:",{"$f":"IFERROR(IF((VLOOKUP(VLOOKUP(rngFactuur,FacturenHoofd[],2,FALSE),KlantenLijst[],5,FALSE))=\"\",\"\",(VLOOKUP(VLOOKUP(rngFactuur,FacturenHoofd[],2,FALSE),KlantenLijst[],5,FALSE))),\"\")","v":"Beukenlaan 56"},{"$f":"\"Fax:     \"&IFERROR(VLOOKUP(VLOOKUP(rngFactuur,FacturenHoofd[],2,FALSE),KlantenLijst[],11,FALSE),\"\")","v":"Fax:     234-2345678"},null,"Factuurdatum:",{"$f":"IFERROR(IF(VLOOKUP(rngFactuur,FacturenHoofd[],3,FALSE)=\"\",\"\",VLOOKUP(rngFactuur,FacturenHoofd[],3,FALSE)),\"\")","v":"2019-09-12"}]
[null,null,{"$f":"IFERROR(VLOOKUP(VLOOKUP(rngFactuur,FacturenHoofd[],2,FALSE),KlantenLijst[],6,FALSE)&\", \"& VLOOKUP(VLOOKUP(G4,FacturenHoofd[],2,FALSE),KlantenLijst[],7,FALSE)&\" \"&VLOOKUP(VLOOKUP(G4,FacturenHoofd[],2,FALSE),KlantenLijst[],8,FALSE),\"\")","v":"Doetinchem, GE 098765"},{"$f":"\"E-mailadres: \"&IFERROR(VLOOKUP(VLOOKUP(rngFactuur,FacturenHoofd[],2,FALSE),KlantenLijst[],10,FALSE),\"\")","v":"E-mailadres: iemand@example.com"}]
[null,{"$f":"\"Factuur Voor: \"&IFERROR(VLOOKUP(rngFactuur,FacturenHoofd[],4),\"\")","v":"Factuur Voor: Project 2"}]
[null,"Artikel #","Beschrijving","Hoev.","Prijs per eenheid","Korting","Prijs"]
[null,{"$f":"IFERROR(INDEX(FactuurDetails[],SMALL(IF(FactuurDetails[Factuur '#]=rngFactuur,ROW(FactuurDetails[])-ROW(FactuurDetails[#Headers])), ROW(1:1)), MATCH($B$8, FactuurDetails[#Headers], 0)),\"\")","v":"Z4567"},{"$f":"IFERROR(INDEX(FactuurDetails[],SMALL(IF(FactuurDetails[Factuur '#]=rngFactuur,ROW(FactuurDetails[])-ROW(FactuurDetails[#Headers])), ROW(1:1)), MATCH($C$8, FactuurDetails[#Headers], 0)),\"\")","v":"Factuur 3-456-2 Gegevens 1"},{"$f":"IFERROR(INDEX(FactuurDetails[],SMALL(IF(FactuurDetails[Factuur '#]=rngFactuur,ROW(FactuurDetails[])-ROW(FactuurDetails[#Headers])), ROW(1:1)), MATCH($D$8, FactuurDetails[#Headers], 0)),\"\")","v":39},{"$f":"IFERROR(INDEX(FactuurDetails[],SMALL(IF(FactuurDetails[Factuur '#]=rngFactuur,ROW(FactuurDetails[])-ROW(FactuurDetails[#Headers])), ROW(1:1)), MATCH($E$8, FactuurDetails[#Headers], 0)),\"\")","v":{"v":5,"d":"€ 5.00"}},{"$f":"IFERROR(INDEX(FactuurDetails[],SMALL(IF(FactuurDetails[Factuur '#]=rngFactuur,ROW(FactuurDetails[])-ROW(FactuurDetails[#Headers])), ROW(1:1)), MATCH($F$8, FactuurDetails[#Headers], 0)),\"\")","v":0},{"$f":"IFERROR((D9*E9)-F9,\"\")","v":{"v":195,"d":"€ 195.00"}}]
[null,{"$f":"IFERROR(INDEX(FactuurDetails[],SMALL(IF(FactuurDetails[Factuur '#]=rngFactuur,ROW(FactuurDetails[])-ROW(FactuurDetails[#Headers])), ROW(2:2)), MATCH($B$8, FactuurDetails[#Headers], 0)),\"\")","v":"Z4568"},{"$f":"IFERROR(INDEX(FactuurDetails[],SMALL(IF(FactuurDetails[Factuur '#]=rngFactuur,ROW(FactuurDetails[])-ROW(FactuurDetails[#Headers])), ROW(2:2)), MATCH($C$8, FactuurDetails[#Headers], 0)),\"\")","v":"Factuur 3-456-2 Gegevens 2"},{"$f":"IFERROR(INDEX(FactuurDetails[],SMALL(IF(FactuurDetails[Factuur '#]=rngFactuur,ROW(FactuurDetails[])-ROW(FactuurDetails[#Headers])), ROW(2:2)), MATCH($D$8, FactuurDetails[#Headers], 0)),\"\")","v":40},{"$f":"IFERROR(INDEX(FactuurDetails[],SMALL(IF(FactuurDetails[Factuur '#]=rngFactuur,ROW(FactuurDetails[])-ROW(FactuurDetails[#Headers])), ROW(2:2)), MATCH($E$8, FactuurDetails[#Headers], 0)),\"\")","v":{"v":4,"d":"€ 4.00"}},{"$f":"IFERROR(INDEX(FactuurDetails[],SMALL(IF(FactuurDetails[Factuur '#]=rngFactuur,ROW(FactuurDetails[])-ROW(FactuurDetails[#Headers])), ROW(2:2)), MATCH($F$8, FactuurDetails[#Headers], 0)),\"\")","v":{"v":5,"d":"€ 5.00"}},{"v":155,"d":"€ 155.00"}]
[null,{"$f":"IFERROR(INDEX(FactuurDetails[],SMALL(IF(FactuurDetails[Factuur '#]=rngFactuur,ROW(FactuurDetails[])-ROW(FactuurDetails[#Headers])), ROW(3:3)), MATCH($B$8, FactuurDetails[#Headers], 0)),\"\")","v":"Z4569"},{"$f":"IFERROR(INDEX(FactuurDetails[],SMALL(IF(FactuurDetails[Factuur '#]=rngFactuur,ROW(FactuurDetails[])-ROW(FactuurDetails[#Headers])), ROW(3:3)), MATCH($C$8, FactuurDetails[#Headers], 0)),\"\")","v":"Factuur 3-456-2 Gegevens 3"},{"$f":"IFERROR(INDEX(FactuurDetails[],SMALL(IF(FactuurDetails[Factuur '#]=rngFactuur,ROW(FactuurDetails[])-ROW(FactuurDetails[#Headers])), ROW(3:3)), MATCH($D$8, FactuurDetails[#Headers], 0)),\"\")","v":30},{"$f":"IFERROR(INDEX(FactuurDetails[],SMALL(IF(FactuurDetails[Factuur '#]=rngFactuur,ROW(FactuurDetails[])-ROW(FactuurDetails[#Headers])), ROW(3:3)), MATCH($E$8, FactuurDetails[#Headers], 0)),\"\")","v":{"v":6,"d":"€ 6.00"}},{"$f":"IFERROR(INDEX(FactuurDetails[],SMALL(IF(FactuurDetails[Factuur '#]=rngFactuur,ROW(FactuurDetails[])-ROW(FactuurDetails[#Headers])), ROW(3:3)), MATCH($F$8, FactuurDetails[#Headers], 0)),\"\")","v":{"v":7,"d":"€ 7.00"}},{"v":173,"d":"€ 173.00"}]
[null,{"$f":"IFERROR(INDEX(FactuurDetails[],SMALL(IF(FactuurDetails[Factuur '#]=rngFactuur,ROW(FactuurDetails[])-ROW(FactuurDetails[#Headers])), ROW(4:4)), MATCH($B$8, FactuurDetails[#Headers], 0)),\"\")","v":"Z4570"},{"$f":"IFERROR(INDEX(FactuurDetails[],SMALL(IF(FactuurDetails[Factuur '#]=rngFactuur,ROW(FactuurDetails[])-ROW(FactuurDetails[#Headers])), ROW(4:4)), MATCH($C$8, FactuurDetails[#Headers], 0)),\"\")","v":"Factuur 3-456-2 Gegevens 4"},{"$f":"IFERROR(INDEX(FactuurDetails[],SMALL(IF(FactuurDetails[Factuur '#]=rngFactuur,ROW(FactuurDetails[])-ROW(FactuurDetails[#Headers])), ROW(4:4)), MATCH($D$8, FactuurDetails[#Headers], 0)),\"\")","v":40},{"$f":"IFERROR(INDEX(FactuurDetails[],SMALL(IF(FactuurDetails[Factuur '#]=rngFactuur,ROW(FactuurDetails[])-ROW(FactuurDetails[#Headers])), ROW(4:4)), MATCH($E$8, FactuurDetails[#Headers], 0)),\"\")","v":{"v":7,"d":"€ 7.00"}},{"$f":"IFERROR(INDEX(FactuurDetails[],SMALL(IF(FactuurDetails[Factuur '#]=rngFactuur,ROW(FactuurDetails[])-ROW(FactuurDetails[#Headers])), ROW(4:4)), MATCH($F$8, FactuurDetails[#Headers], 0)),\"\")","v":0},{"v":280,"d":"€ 280.00"}]
[null,{"$f":"IFERROR(INDEX(FactuurDetails[],SMALL(IF(FactuurDetails[Factuur '#]=rngFactuur,ROW(FactuurDetails[])-ROW(FactuurDetails[#Headers])), ROW(5:5)), MATCH($B$8, FactuurDetails[#Headers], 0)),\"\")","v":"Z4571"},{"$f":"IFERROR(INDEX(FactuurDetails[],SMALL(IF(FactuurDetails[Factuur '#]=rngFactuur,ROW(FactuurDetails[])-ROW(FactuurDetails[#Headers])), ROW(5:5)), MATCH($C$8, FactuurDetails[#Headers], 0)),\"\")","v":"Factuur 3-456-2 Gegevens 5"},{"$f":"IFERROR(INDEX(FactuurDetails[],SMALL(IF(FactuurDetails[Factuur '#]=rngFactuur,ROW(FactuurDetails[])-ROW(FactuurDetails[#Headers])), ROW(5:5)), MATCH($D$8, FactuurDetails[#Headers], 0)),\"\")","v":10},{"$f":"IFERROR(INDEX(FactuurDetails[],SMALL(IF(FactuurDetails[Factuur '#]=rngFactuur,ROW(FactuurDetails[])-ROW(FactuurDetails[#Headers])), ROW(5:5)), MATCH($E$8, FactuurDetails[#Headers], 0)),\"\")","v":{"v":4,"d":"€ 4.00"}},{"$f":"IFERROR(INDEX(FactuurDetails[],SMALL(IF(FactuurDetails[Factuur '#]=rngFactuur,ROW(FactuurDetails[])-ROW(FactuurDetails[#Headers])), ROW(5:5)), MATCH($F$8, FactuurDetails[#Headers], 0)),\"\")","v":0},{"v":40,"d":"€ 40.00"}]
[null,{"$f":"IFERROR(INDEX(FactuurDetails[],SMALL(IF(FactuurDetails[Factuur '#]=rngFactuur,ROW(FactuurDetails[])-ROW(FactuurDetails[#Headers])), ROW(6:6)), MATCH($B$8, FactuurDetails[#Headers], 0)),\"\")","v":"Z4572"},{"$f":"IFERROR(INDEX(FactuurDetails[],SMALL(IF(FactuurDetails[Factuur '#]=rngFactuur,ROW(FactuurDetails[])-ROW(FactuurDetails[#Headers])), ROW(6:6)), MATCH($C$8, FactuurDetails[#Headers], 0)),\"\")","v":"Factuur 3-456-2 Gegevens 6"},{"$f":"IFERROR(INDEX(FactuurDetails[],SMALL(IF(FactuurDetails[Factuur '#]=rngFactuur,ROW(FactuurDetails[])-ROW(FactuurDetails[#Headers])), ROW(6:6)), MATCH($D$8, FactuurDetails[#Headers], 0)),\"\")","v":5},{"$f":"IFERROR(INDEX(FactuurDetails[],SMALL(IF(FactuurDetails[Factuur '#]=rngFactuur,ROW(FactuurDetails[])-ROW(FactuurDetails[#Headers])), ROW(6:6)), MATCH($E$8, FactuurDetails[#Headers], 0)),\"\")","v":{"v":8,"d":"€ 8.00"}},{"$f":"IFERROR(INDEX(FactuurDetails[],SMALL(IF(FactuurDetails[Factuur '#]=rngFactuur,ROW(FactuurDetails[])-ROW(FactuurDetails[#Headers])), ROW(6:6)), MATCH($F$8, FactuurDetails[#Headers], 0)),\"\")","v":0},{"v":40,"d":"€ 40.00"}]
[null,{"$f":"IFERROR(INDEX(FactuurDetails[],SMALL(IF(FactuurDetails[Factuur '#]=rngFactuur,ROW(FactuurDetails[])-ROW(FactuurDetails[#Headers])), ROW(7:7)), MATCH($B$8, FactuurDetails[#Headers], 0)),\"\")","v":"Z4573"},{"$f":"IFERROR(INDEX(FactuurDetails[],SMALL(IF(FactuurDetails[Factuur '#]=rngFactuur,ROW(FactuurDetails[])-ROW(FactuurDetails[#Headers])), ROW(7:7)), MATCH($C$8, FactuurDetails[#Headers], 0)),\"\")","v":"Factuur 3-456-2 Gegevens 7"},{"$f":"IFERROR(INDEX(FactuurDetails[],SMALL(IF(FactuurDetails[Factuur '#]=rngFactuur,ROW(FactuurDetails[])-ROW(FactuurDetails[#Headers])), ROW(7:7)), MATCH($D$8, FactuurDetails[#Headers], 0)),\"\")","v":70},{"$f":"IFERROR(INDEX(FactuurDetails[],SMALL(IF(FactuurDetails[Factuur '#]=rngFactuur,ROW(FactuurDetails[])-ROW(FactuurDetails[#Headers])), ROW(7:7)), MATCH($E$8, FactuurDetails[#Headers], 0)),\"\")","v":{"v":6,"d":"€ 6.00"}},{"$f":"IFERROR(INDEX(FactuurDetails[],SMALL(IF(FactuurDetails[Factuur '#]=rngFactuur,ROW(FactuurDetails[])-ROW(FactuurDetails[#Headers])), ROW(7:7)), MATCH($F$8, FactuurDetails[#Headers], 0)),\"\")","v":0},{"v":420,"d":"€ 420.00"}]
[null,{"$f":"IFERROR(INDEX(FactuurDetails[],SMALL(IF(FactuurDetails[Factuur '#]=rngFactuur,ROW(FactuurDetails[])-ROW(FactuurDetails[#Headers])), ROW(8:8)), MATCH($B$8, FactuurDetails[#Headers], 0)),\"\")","v":"Z4574"},{"$f":"IFERROR(INDEX(FactuurDetails[],SMALL(IF(FactuurDetails[Factuur '#]=rngFactuur,ROW(FactuurDetails[])-ROW(FactuurDetails[#Headers])), ROW(8:8)), MATCH($C$8, FactuurDetails[#Headers], 0)),\"\")","v":"Factuur 3-456-2 Gegevens 8"},{"$f":"IFERROR(INDEX(FactuurDetails[],SMALL(IF(FactuurDetails[Factuur '#]=rngFactuur,ROW(FactuurDetails[])-ROW(FactuurDetails[#Headers])), ROW(8:8)), MATCH($D$8, FactuurDetails[#Headers], 0)),\"\")","v":25},{"$f":"IFERROR(INDEX(FactuurDetails[],SMALL(IF(FactuurDetails[Factuur '#]=rngFactuur,ROW(FactuurDetails[])-ROW(FactuurDetails[#Headers])), ROW(8:8)), MATCH($E$8, FactuurDetails[#Headers], 0)),\"\")","v":{"v":4,"d":"€ 4.00"}},{"$f":"IFERROR(INDEX(FactuurDetails[],SMALL(IF(FactuurDetails[Factuur '#]=rngFactuur,ROW(FactuurDetails[])-ROW(FactuurDetails[#Headers])), ROW(8:8)), MATCH($F$8, FactuurDetails[#Headers], 0)),\"\")","v":0},{"v":100,"d":"€ 100.00"}]
[null,{"$f":"IFERROR(INDEX(FactuurDetails[],SMALL(IF(FactuurDetails[Factuur '#]=rngFactuur,ROW(FactuurDetails[])-ROW(FactuurDetails[#Headers])), ROW(9:9)), MATCH($B$8, FactuurDetails[#Headers], 0)),\"\")","v":"Z4575"},{"$f":"IFERROR(INDEX(FactuurDetails[],SMALL(IF(FactuurDetails[Factuur '#]=rngFactuur,ROW(FactuurDetails[])-ROW(FactuurDetails[#Headers])), ROW(9:9)), MATCH($C$8, FactuurDetails[#Headers], 0)),\"\")","v":"Factuur 3-456-2 Gegevens 9"},{"$f":"IFERROR(INDEX(FactuurDetails[],SMALL(IF(FactuurDetails[Factuur '#]=rngFactuur,ROW(FactuurDetails[])-ROW(FactuurDetails[#Headers])), ROW(9:9)), MATCH($D$8, FactuurDetails[#Headers], 0)),\"\")","v":5},{"$f":"IFERROR(INDEX(FactuurDetails[],SMALL(IF(FactuurDetails[Factuur '#]=rngFactuur,ROW(FactuurDetails[])-ROW(FactuurDetails[#Headers])), ROW(9:9)), MATCH($E$8, FactuurDetails[#Headers], 0)),\"\")","v":{"v":7,"d":"€ 7.00"}},{"$f":"IFERROR(INDEX(FactuurDetails[],SMALL(IF(FactuurDetails[Factuur '#]=rngFactuur,ROW(FactuurDetails[])-ROW(FactuurDetails[#Headers])), ROW(9:9)), MATCH($F$8, FactuurDetails[#Headers], 0)),\"\")","v":{"v":3,"d":"€ 3.00"}},{"v":32,"d":"€ 32.00"}]
[null,{"$f":"IFERROR(INDEX(FactuurDetails[],SMALL(IF(FactuurDetails[Factuur '#]=rngFactuur,ROW(FactuurDetails[])-ROW(FactuurDetails[#Headers])), ROW(10:10)), MATCH($B$8, FactuurDetails[#Headers], 0)),\"\")","v":"Z4576"},{"$f":"IFERROR(INDEX(FactuurDetails[],SMALL(IF(FactuurDetails[Factuur '#]=rngFactuur,ROW(FactuurDetails[])-ROW(FactuurDetails[#Headers])), ROW(10:10)), MATCH($C$8, FactuurDetails[#Headers], 0)),\"\")","v":"Factuur 3-456-2 Gegevens 10"},{"$f":"IFERROR(INDEX(FactuurDetails[],SMALL(IF(FactuurDetails[Factuur '#]=rngFactuur,ROW(FactuurDetails[])-ROW(FactuurDetails[#Headers])), ROW(10:10)), MATCH($D$8, FactuurDetails[#Headers], 0)),\"\")","v":80},{"$f":"IFERROR(INDEX(FactuurDetails[],SMALL(IF(FactuurDetails[Factuur '#]=rngFactuur,ROW(FactuurDetails[])-ROW(FactuurDetails[#Headers])), ROW(10:10)), MATCH($E$8, FactuurDetails[#Headers], 0)),\"\")","v":{"v":1,"d":"€ 1.00"}},{"$f":"IFERROR(INDEX(FactuurDetails[],SMALL(IF(FactuurDetails[Factuur '#]=rngFactuur,ROW(FactuurDetails[])-ROW(FactuurDetails[#Headers])), ROW(10:10)), MATCH($F$8, FactuurDetails[#Headers], 0)),\"\")","v":0},{"v":80,"d":"€ 80.00"}]
[null,{"$f":"IFERROR(INDEX(FactuurDetails[],SMALL(IF(FactuurDetails[Factuur '#]=rngFactuur,ROW(FactuurDetails[])-ROW(FactuurDetails[#Headers])), ROW(11:11)), MATCH($B$8, FactuurDetails[#Headers], 0)),\"\")","v":"Z4577"},{"$f":"IFERROR(INDEX(FactuurDetails[],SMALL(IF(FactuurDetails[Factuur '#]=rngFactuur,ROW(FactuurDetails[])-ROW(FactuurDetails[#Headers])), ROW(11:11)), MATCH($C$8, FactuurDetails[#Headers], 0)),\"\")","v":"Factuur 3-456-2 Gegevens 11"},{"$f":"IFERROR(INDEX(FactuurDetails[],SMALL(IF(FactuurDetails[Factuur '#]=rngFactuur,ROW(FactuurDetails[])-ROW(FactuurDetails[#Headers])), ROW(11:11)), MATCH($D$8, FactuurDetails[#Headers], 0)),\"\")","v":65},{"$f":"IFERROR(INDEX(FactuurDetails[],SMALL(IF(FactuurDetails[Factuur '#]=rngFactuur,ROW(FactuurDetails[])-ROW(FactuurDetails[#Headers])), ROW(11:11)), MATCH($E$8, FactuurDetails[#Headers], 0)),\"\")","v":{"v":7,"d":"€ 7.00"}},{"$f":"IFERROR(INDEX(FactuurDetails[],SMALL(IF(FactuurDetails[Factuur '#]=rngFactuur,ROW(FactuurDetails[])-ROW(FactuurDetails[#Headers])), ROW(11:11)), MATCH($F$8, FactuurDetails[#Headers], 0)),\"\")","v":0},{"v":455,"d":"€ 455.00"}]
[null,{"$f":"IFERROR(INDEX(FactuurDetails[],SMALL(IF(FactuurDetails[Factuur '#]=rngFactuur,ROW(FactuurDetails[])-ROW(FactuurDetails[#Headers])), ROW(12:12)), MATCH($B$8, FactuurDetails[#Headers], 0)),\"\")","v":"Z4578"},{"$f":"IFERROR(INDEX(FactuurDetails[],SMALL(IF(FactuurDetails[Factuur '#]=rngFactuur,ROW(FactuurDetails[])-ROW(FactuurDetails[#Headers])), ROW(12:12)), MATCH($C$8, FactuurDetails[#Headers], 0)),\"\")","v":"Factuur 3-456-2 Gegevens 12"},{"$f":"IFERROR(INDEX(FactuurDetails[],SMALL(IF(FactuurDetails[Factuur '#]=rngFactuur,ROW(FactuurDetails[])-ROW(FactuurDetails[#Headers])), ROW(12:12)), MATCH($D$8, FactuurDetails[#Headers], 0)),\"\")","v":44},{"$f":"IFERROR(INDEX(FactuurDetails[],SMALL(IF(FactuurDetails[Factuur '#]=rngFactuur,ROW(FactuurDetails[])-ROW(FactuurDetails[#Headers])), ROW(12:12)), MATCH($E$8, FactuurDetails[#Headers], 0)),\"\")","v":{"v":1,"d":"€ 1.00"}},{"$f":"IFERROR(INDEX(FactuurDetails[],SMALL(IF(FactuurDetails[Factuur '#]=rngFactuur,ROW(FactuurDetails[])-ROW(FactuurDetails[#Headers])), ROW(12:12)), MATCH($F$8, FactuurDetails[#Headers], 0)),\"\")","v":0},{"v":44,"d":"€ 44.00"}]
[null,{"$f":"IFERROR(INDEX(FactuurDetails[],SMALL(IF(FactuurDetails[Factuur '#]=rngFactuur,ROW(FactuurDetails[])-ROW(FactuurDetails[#Headers])), ROW(13:13)), MATCH($B$8, FactuurDetails[#Headers], 0)),\"\")","v":""},{"$f":"IFERROR(INDEX(FactuurDetails[],SMALL(IF(FactuurDetails[Factuur '#]=rngFactuur,ROW(FactuurDetails[])-ROW(FactuurDetails[#Headers])), ROW(13:13)), MATCH($C$8, FactuurDetails[#Headers], 0)),\"\")","v":""},{"$f":"IFERROR(INDEX(FactuurDetails[],SMALL(IF(FactuurDetails[Factuur '#]=rngFactuur,ROW(FactuurDetails[])-ROW(FactuurDetails[#Headers])), ROW(13:13)), MATCH($D$8, FactuurDetails[#Headers], 0)),\"\")","v":""},{"$f":"IFERROR(INDEX(FactuurDetails[],SMALL(IF(FactuurDetails[Factuur '#]=rngFactuur,ROW(FactuurDetails[])-ROW(FactuurDetails[#Headers])), ROW(13:13)), MATCH($E$8, FactuurDetails[#Headers], 0)),\"\")","v":""},{"$f":"IFERROR(INDEX(FactuurDetails[],SMALL(IF(FactuurDetails[Factuur '#]=rngFactuur,ROW(FactuurDetails[])-ROW(FactuurDetails[#Headers])), ROW(13:13)), MATCH($F$8, FactuurDetails[#Headers], 0)),\"\")","v":""},""]
[null,{"$f":"IFERROR(INDEX(FactuurDetails[],SMALL(IF(FactuurDetails[Factuur '#]=rngFactuur,ROW(FactuurDetails[])-ROW(FactuurDetails[#Headers])), ROW(14:14)), MATCH($B$8, FactuurDetails[#Headers], 0)),\"\")","v":""},{"$f":"IFERROR(INDEX(FactuurDetails[],SMALL(IF(FactuurDetails[Factuur '#]=rngFactuur,ROW(FactuurDetails[])-ROW(FactuurDetails[#Headers])), ROW(14:14)), MATCH($C$8, FactuurDetails[#Headers], 0)),\"\")","v":""},{"$f":"IFERROR(INDEX(FactuurDetails[],SMALL(IF(FactuurDetails[Factuur '#]=rngFactuur,ROW(FactuurDetails[])-ROW(FactuurDetails[#Headers])), ROW(14:14)), MATCH($D$8, FactuurDetails[#Headers], 0)),\"\")","v":""},{"$f":"IFERROR(INDEX(FactuurDetails[],SMALL(IF(FactuurDetails[Factuur '#]=rngFactuur,ROW(FactuurDetails[])-ROW(FactuurDetails[#Headers])), ROW(14:14)), MATCH($E$8, FactuurDetails[#Headers], 0)),\"\")","v":""},{"$f":"IFERROR(INDEX(FactuurDetails[],SMALL(IF(FactuurDetails[Factuur '#]=rngFactuur,ROW(FactuurDetails[])-ROW(FactuurDetails[#Headers])), ROW(14:14)), MATCH($F$8, FactuurDetails[#Headers], 0)),\"\")","v":""},""]
[null,{"$f":"IFERROR(INDEX(FactuurDetails[],SMALL(IF(FactuurDetails[Factuur '#]=rngFactuur,ROW(FactuurDetails[])-ROW(FactuurDetails[#Headers])), ROW(15:15)), MATCH($B$8, FactuurDetails[#Headers], 0)),\"\")","v":""},{"$f":"IFERROR(INDEX(FactuurDetails[],SMALL(IF(FactuurDetails[Factuur '#]=rngFactuur,ROW(FactuurDetails[])-ROW(FactuurDetails[#Headers])), ROW(15:15)), MATCH($C$8, FactuurDetails[#Headers], 0)),\"\")","v":""},{"$f":"IFERROR(INDEX(FactuurDetails[],SMALL(IF(FactuurDetails[Factuur '#]=rngFactuur,ROW(FactuurDetails[])-ROW(FactuurDetails[#Headers])), ROW(15:15)), MATCH($D$8, FactuurDetails[#Headers], 0)),\"\")","v":""},{"$f":"IFERROR(INDEX(FactuurDetails[],SMALL(IF(FactuurDetails[Factuur '#]=rngFactuur,ROW(FactuurDetails[])-ROW(FactuurDetails[#Headers])), ROW(15:15)), MATCH($E$8, FactuurDetails[#Headers], 0)),\"\")","v":""},{"$f":"IFERROR(INDEX(FactuurDetails[],SMALL(IF(FactuurDetails[Factuur '#]=rngFactuur,ROW(FactuurDetails[])-ROW(FactuurDetails[#Headers])), ROW(15:15)), MATCH($F$8, FactuurDetails[#Headers], 0)),\"\")","v":""},""]
[null,{"$f":"IFERROR(INDEX(FactuurDetails[],SMALL(IF(FactuurDetails[Factuur '#]=rngFactuur,ROW(FactuurDetails[])-ROW(FactuurDetails[#Headers])), ROW(16:16)), MATCH($B$8, FactuurDetails[#Headers], 0)),\"\")","v":""},{"$f":"IFERROR(INDEX(FactuurDetails[],SMALL(IF(FactuurDetails[Factuur '#]=rngFactuur,ROW(FactuurDetails[])-ROW(FactuurDetails[#Headers])), ROW(16:16)), MATCH($C$8, FactuurDetails[#Headers], 0)),\"\")","v":""},{"$f":"IFERROR(INDEX(FactuurDetails[],SMALL(IF(FactuurDetails[Factuur '#]=rngFactuur,ROW(FactuurDetails[])-ROW(FactuurDetails[#Headers])), ROW(16:16)), MATCH($D$8, FactuurDetails[#Headers], 0)),\"\")","v":""},{"$f":"IFERROR(INDEX(FactuurDetails[],SMALL(IF(FactuurDetails[Factuur '#]=rngFactuur,ROW(FactuurDetails[])-ROW(FactuurDetails[#Headers])), ROW(16:16)), MATCH($E$8, FactuurDetails[#Headers], 0)),\"\")","v":""},{"$f":"IFERROR(INDEX(FactuurDetails[],SMALL(IF(FactuurDetails[Factuur '#]=rngFactuur,ROW(FactuurDetails[])-ROW(FactuurDetails[#Headers])), ROW(16:16)), MATCH($F$8, FactuurDetails[#Headers], 0)),\"\")","v":""},""]
[null,{"$f":"IFERROR(INDEX(FactuurDetails[],SMALL(IF(FactuurDetails[Factuur '#]=rngFactuur,ROW(FactuurDetails[])-ROW(FactuurDetails[#Headers])), ROW(17:17)), MATCH($B$8, FactuurDetails[#Headers], 0)),\"\")","v":""},{"$f":"IFERROR(INDEX(FactuurDetails[],SMALL(IF(FactuurDetails[Factuur '#]=rngFactuur,ROW(FactuurDetails[])-ROW(FactuurDetails[#Headers])), ROW(17:17)), MATCH($C$8, FactuurDetails[#Headers], 0)),\"\")","v":""},{"$f":"IFERROR(INDEX(FactuurDetails[],SMALL(IF(FactuurDetails[Factuur '#]=rngFactuur,ROW(FactuurDetails[])-ROW(FactuurDetails[#Headers])), ROW(17:17)), MATCH($D$8, FactuurDetails[#Headers], 0)),\"\")","v":""},{"$f":"IFERROR(INDEX(FactuurDetails[],SMALL(IF(FactuurDetails[Factuur '#]=rngFactuur,ROW(FactuurDetails[])-ROW(FactuurDetails[#Headers])), ROW(17:17)), MATCH($E$8, FactuurDetails[#Headers], 0)),\"\")","v":""},{"$f":"IFERROR(INDEX(FactuurDetails[],SMALL(IF(FactuurDetails[Factuur '#]=rngFactuur,ROW(FactuurDetails[])-ROW(FactuurDetails[#Headers])), ROW(17:17)), MATCH($F$8, FactuurDetails[#Headers], 0)),\"\")","v":""},""]
[null,{"$f":"IFERROR(INDEX(FactuurDetails[],SMALL(IF(FactuurDetails[Factuur '#]=rngFactuur,ROW(FactuurDetails[])-ROW(FactuurDetails[#Headers])), ROW(18:18)), MATCH($B$8, FactuurDetails[#Headers], 0)),\"\")","v":""},{"$f":"IFERROR(INDEX(FactuurDetails[],SMALL(IF(FactuurDetails[Factuur '#]=rngFactuur,ROW(FactuurDetails[])-ROW(FactuurDetails[#Headers])), ROW(18:18)), MATCH($C$8, FactuurDetails[#Headers], 0)),\"\")","v":""},{"$f":"IFERROR(INDEX(FactuurDetails[],SMALL(IF(FactuurDetails[Factuur '#]=rngFactuur,ROW(FactuurDetails[])-ROW(FactuurDetails[#Headers])), ROW(18:18)), MATCH($D$8, FactuurDetails[#Headers], 0)),\"\")","v":""},{"$f":"IFERROR(INDEX(FactuurDetails[],SMALL(IF(FactuurDetails[Factuur '#]=rngFactuur,ROW(FactuurDetails[])-ROW(FactuurDetails[#Headers])), ROW(18:18)), MATCH($E$8, FactuurDetails[#Headers], 0)),\"\")","v":""},{"$f":"IFERROR(INDEX(FactuurDetails[],SMALL(IF(FactuurDetails[Factuur '#]=rngFactuur,ROW(FactuurDetails[])-ROW(FactuurDetails[#Headers])), ROW(18:18)), MATCH($F$8, FactuurDetails[#Headers], 0)),\"\")","v":""},""]
[null,{"$f":"IFERROR(INDEX(FactuurDetails[],SMALL(IF(FactuurDetails[Factuur '#]=rngFactuur,ROW(FactuurDetails[])-ROW(FactuurDetails[#Headers])), ROW(19:19)), MATCH($B$8, FactuurDetails[#Headers], 0)),\"\")","v":""},{"$f":"IFERROR(INDEX(FactuurDetails[],SMALL(IF(FactuurDetails[Factuur '#]=rngFactuur,ROW(FactuurDetails[])-ROW(FactuurDetails[#Headers])), ROW(19:19)), MATCH($C$8, FactuurDetails[#Headers], 0)),\"\")","v":""},{"$f":"IFERROR(INDEX(FactuurDetails[],SMALL(IF(FactuurDetails[Factuur '#]=rngFactuur,ROW(FactuurDetails[])-ROW(FactuurDetails[#Headers])), ROW(19:19)), MATCH($D$8, FactuurDetails[#Headers], 0)),\"\")","v":""},{"$f":"IFERROR(INDEX(FactuurDetails[],SMALL(IF(FactuurDetails[Factuur '#]=rngFactuur,ROW(FactuurDetails[])-ROW(FactuurDetails[#Headers])), ROW(19:19)), MATCH($E$8, FactuurDetails[#Headers], 0)),\"\")","v":""},{"$f":"IFERROR(INDEX(FactuurDetails[],SMALL(IF(FactuurDetails[Factuur '#]=rngFactuur,ROW(FactuurDetails[])-ROW(FactuurDetails[#Headers])), ROW(19:19)), MATCH($F$8, FactuurDetails[#Headers], 0)),\"\")","v":""},""]
[null,{"$f":"IFERROR(INDEX(FactuurDetails[],SMALL(IF(FactuurDetails[Factuur '#]=rngFactuur,ROW(FactuurDetails[])-ROW(FactuurDetails[#Headers])), ROW(20:20)), MATCH($B$8, FactuurDetails[#Headers], 0)),\"\")","v":""},{"$f":"IFERROR(INDEX(FactuurDetails[],SMALL(IF(FactuurDetails[Factuur '#]=rngFactuur,ROW(FactuurDetails[])-ROW(FactuurDetails[#Headers])), ROW(20:20)), MATCH($C$8, FactuurDetails[#Headers], 0)),\"\")","v":""},{"$f":"IFERROR(INDEX(FactuurDetails[],SMALL(IF(FactuurDetails[Factuur '#]=rngFactuur,ROW(FactuurDetails[])-ROW(FactuurDetails[#Headers])), ROW(20:20)), MATCH($D$8, FactuurDetails[#Headers], 0)),\"\")","v":""},{"$f":"IFERROR(INDEX(FactuurDetails[],SMALL(IF(FactuurDetails[Factuur '#]=rngFactuur,ROW(FactuurDetails[])-ROW(FactuurDetails[#Headers])), ROW(20:20)), MATCH($E$8, FactuurDetails[#Headers], 0)),\"\")","v":""},{"$f":"IFERROR(INDEX(FactuurDetails[],SMALL(IF(FactuurDetails[Factuur '#]=rngFactuur,ROW(FactuurDetails[])-ROW(FactuurDetails[#Headers])), ROW(20:20)), MATCH($F$8, FactuurDetails[#Headers], 0)),\"\")","v":""},""]
[null,{"$f":"IFERROR(INDEX(FactuurDetails[],SMALL(IF(FactuurDetails[Factuur '#]=rngFactuur,ROW(FactuurDetails[])-ROW(FactuurDetails[#Headers])), ROW(21:21)), MATCH($B$8, FactuurDetails[#Headers], 0)),\"\")","v":""},{"$f":"IFERROR(INDEX(FactuurDetails[],SMALL(IF(FactuurDetails[Factuur '#]=rngFactuur,ROW(FactuurDetails[])-ROW(FactuurDetails[#Headers])), ROW(21:21)), MATCH($C$8, FactuurDetails[#Headers], 0)),\"\")","v":""},{"$f":"IFERROR(INDEX(FactuurDetails[],SMALL(IF(FactuurDetails[Factuur '#]=rngFactuur,ROW(FactuurDetails[])-ROW(FactuurDetails[#Headers])), ROW(21:21)), MATCH($D$8, FactuurDetails[#Headers], 0)),\"\")","v":""},{"$f":"IFERROR(INDEX(FactuurDetails[],SMALL(IF(FactuurDetails[Factuur '#]=rngFactuur,ROW(FactuurDetails[])-ROW(FactuurDetails[#Headers])), ROW(21:21)), MATCH($E$8, FactuurDetails[#Headers], 0)),\"\")","v":""},{"$f":"IFERROR(INDEX(FactuurDetails[],SMALL(IF(FactuurDetails[Factuur '#]=rngFactuur,ROW(FactuurDetails[])-ROW(FactuurDetails[#Headers])), ROW(21:21)), MATCH($F$8, FactuurDetails[#Headers], 0)),\"\")","v":""},""]
[null,{"$f":"IFERROR(INDEX(FactuurDetails[],SMALL(IF(FactuurDetails[Factuur '#]=rngFactuur,ROW(FactuurDetails[])-ROW(FactuurDetails[#Headers])), ROW(22:22)), MATCH($B$8, FactuurDetails[#Headers], 0)),\"\")","v":""},{"$f":"IFERROR(INDEX(FactuurDetails[],SMALL(IF(FactuurDetails[Factuur '#]=rngFactuur,ROW(FactuurDetails[])-ROW(FactuurDetails[#Headers])), ROW(22:22)), MATCH($C$8, FactuurDetails[#Headers], 0)),\"\")","v":""},{"$f":"IFERROR(INDEX(FactuurDetails[],SMALL(IF(FactuurDetails[Factuur '#]=rngFactuur,ROW(FactuurDetails[])-ROW(FactuurDetails[#Headers])), ROW(22:22)), MATCH($D$8, FactuurDetails[#Headers], 0)),\"\")","v":""},{"$f":"IFERROR(INDEX(FactuurDetails[],SMALL(IF(FactuurDetails[Factuur '#]=rngFactuur,ROW(FactuurDetails[])-ROW(FactuurDetails[#Headers])), ROW(22:22)), MATCH($E$8, FactuurDetails[#Headers], 0)),\"\")","v":""},{"$f":"IFERROR(INDEX(FactuurDetails[],SMALL(IF(FactuurDetails[Factuur '#]=rngFactuur,ROW(FactuurDetails[])-ROW(FactuurDetails[#Headers])), ROW(22:22)), MATCH($F$8, FactuurDetails[#Headers], 0)),\"\")","v":""},""]
[null,{"$f":"IFERROR(INDEX(FactuurDetails[],SMALL(IF(FactuurDetails[Factuur '#]=rngFactuur,ROW(FactuurDetails[])-ROW(FactuurDetails[#Headers])), ROW(23:23)), MATCH($B$8, FactuurDetails[#Headers], 0)),\"\")","v":""},{"$f":"IFERROR(INDEX(FactuurDetails[],SMALL(IF(FactuurDetails[Factuur '#]=rngFactuur,ROW(FactuurDetails[])-ROW(FactuurDetails[#Headers])), ROW(23:23)), MATCH($C$8, FactuurDetails[#Headers], 0)),\"\")","v":""},{"$f":"IFERROR(INDEX(FactuurDetails[],SMALL(IF(FactuurDetails[Factuur '#]=rngFactuur,ROW(FactuurDetails[])-ROW(FactuurDetails[#Headers])), ROW(23:23)), MATCH($D$8, FactuurDetails[#Headers], 0)),\"\")","v":""},{"$f":"IFERROR(INDEX(FactuurDetails[],SMALL(IF(FactuurDetails[Factuur '#]=rngFactuur,ROW(FactuurDetails[])-ROW(FactuurDetails[#Headers])), ROW(23:23)), MATCH($E$8, FactuurDetails[#Headers], 0)),\"\")","v":""},{"$f":"IFERROR(INDEX(FactuurDetails[],SMALL(IF(FactuurDetails[Factuur '#]=rngFactuur,ROW(FactuurDetails[])-ROW(FactuurDetails[#Headers])), ROW(23:23)), MATCH($F$8, FactuurDetails[#Headers], 0)),\"\")","v":""},""]
[null,{"$f":"IFERROR(INDEX(FactuurDetails[],SMALL(IF(FactuurDetails[Factuur '#]=rngFactuur,ROW(FactuurDetails[])-ROW(FactuurDetails[#Headers])), ROW(24:24)), MATCH($B$8, FactuurDetails[#Headers], 0)),\"\")","v":""},{"$f":"IFERROR(INDEX(FactuurDetails[],SMALL(IF(FactuurDetails[Factuur '#]=rngFactuur,ROW(FactuurDetails[])-ROW(FactuurDetails[#Headers])), ROW(24:24)), MATCH($C$8, FactuurDetails[#Headers], 0)),\"\")","v":""},{"$f":"IFERROR(INDEX(FactuurDetails[],SMALL(IF(FactuurDetails[Factuur '#]=rngFactuur,ROW(FactuurDetails[])-ROW(FactuurDetails[#Headers])), ROW(24:24)), MATCH($D$8, FactuurDetails[#Headers], 0)),\"\")","v":""},{"$f":"IFERROR(INDEX(FactuurDetails[],SMALL(IF(FactuurDetails[Factuur '#]=rngFactuur,ROW(FactuurDetails[])-ROW(FactuurDetails[#Headers])), ROW(24:24)), MATCH($E$8, FactuurDetails[#Headers], 0)),\"\")","v":""},{"$f":"IFERROR(INDEX(FactuurDetails[],SMALL(IF(FactuurDetails[Factuur '#]=rngFactuur,ROW(FactuurDetails[])-ROW(FactuurDetails[#Headers])), ROW(24:24)), MATCH($F$8, FactuurDetails[#Headers], 0)),\"\")","v":""},""]
[null,{"$f":"IFERROR(INDEX(FactuurDetails[],SMALL(IF(FactuurDetails[Factuur '#]=rngFactuur,ROW(FactuurDetails[])-ROW(FactuurDetails[#Headers])), ROW(25:25)), MATCH($B$8, FactuurDetails[#Headers], 0)),\"\")","v":""},{"$f":"IFERROR(INDEX(FactuurDetails[],SMALL(IF(FactuurDetails[Factuur '#]=rngFactuur,ROW(FactuurDetails[])-ROW(FactuurDetails[#Headers])), ROW(25:25)), MATCH($C$8, FactuurDetails[#Headers], 0)),\"\")","v":""},{"$f":"IFERROR(INDEX(FactuurDetails[],SMALL(IF(FactuurDetails[Factuur '#]=rngFactuur,ROW(FactuurDetails[])-ROW(FactuurDetails[#Headers])), ROW(25:25)), MATCH($D$8, FactuurDetails[#Headers], 0)),\"\")","v":""},{"$f":"IFERROR(INDEX(FactuurDetails[],SMALL(IF(FactuurDetails[Factuur '#]=rngFactuur,ROW(FactuurDetails[])-ROW(FactuurDetails[#Headers])), ROW(25:25)), MATCH($E$8, FactuurDetails[#Headers], 0)),\"\")","v":""},{"$f":"IFERROR(INDEX(FactuurDetails[],SMALL(IF(FactuurDetails[Factuur '#]=rngFactuur,ROW(FactuurDetails[])-ROW(FactuurDetails[#Headers])), ROW(25:25)), MATCH($F$8, FactuurDetails[#Headers], 0)),\"\")","v":""},""]
[{"$nulls":5},"Subtotaal factuur",{"$f":"SUM(ProjectFactuur[Prijs])","v":{"v":2014,"d":"€ 2,014.00"}}]
[{"$nulls":5},"Btw-tarief",{"$f":"VLOOKUP(rngFactuur,FacturenHoofd[],5)","v":{"v":0.0875,"d":"8.75%"}}]
[{"$nulls":5},"Btw",{"$f":"G34*G35","v":{"v":176.225,"d":"€ 176.23"}}]
[{"$nulls":5},"Overig",{"$f":"VLOOKUP(rngFactuur,FacturenHoofd[],6)","v":0}]
[null,{"$f":"\"Schrijf alle cheques uit ten gunste van \"&Bedrijfsnaam&\".\"","v":"Schrijf alle cheques uit ten gunste van Bedrijfsnaam."},{"$nulls":3},"Ontvangen aanbetaling",{"$f":"VLOOKUP(rngFactuur,FacturenHoofd[],7)","v":0}]
[null,"Totaal verschuldigd over <#> dagen. Bij achterstallige betalingen worden administratiekosten in rekening gebracht van <#>% per maand.",{"$nulls":3},"TOTAAL",{"$f":"(G34+G36+G37)-G38","v":{"v":2190.225,"d":"€ 2,190.23"}}]

{"sheet":"Klanten","index":1,"n_rows":6,"n_cols":12,"rows_kept":6}
[]
[null,null,"Klanten"]
[null,"OPZOEKEN","Bedrijf #","Bedrijfsnaam","Naam Contactpersoon","Adres","Stad","Provincie","Postcode","Telefoon","E-mailadres","Fax"]
[null,{"$f":"C4& \" - \"&D4","v":"1 - De troetelbeer "},1,"De troetelbeer ","Robert Leeuw","Bosstraat 34","Amsterdam","NH","1234 AA","0432-5550178","iemand@example.com","0432-5550187"]
[null,"2 - Contoso NV",2,"Contoso NV","Sanjay Patel","Beukenlaan 56","Doetinchem","GE","098765","0432-5550189","iemand@example.com","234-2345678"]
[null,"Totalen",{"$f":"\"Totaal Klanten: \"&SUBTOTAL(103,KlantenLijst[Bedrijf '#])","v":"Totaal Klanten: 2"}]

{"sheet":"Facturen - Hoofd","index":2,"n_rows":6,"n_cols":11,"rows_kept":6}
[]
[null,"Facturen"]
[null,"Factuur #","Bedrijf","Factuurdatum","Projectbeschrijving","Btw-tarief","Overig","Storting","Detail totaal","Factuurtotaal","Notities"]
[null,"3-456-1","1 - De troetelbeer ",{"$f":"TODAY()","v":"2019-09-02"},"Project 1",{"v":0.0875,"d":"8.75%"},{"v":100,"d":"€ 100.00"},{"v":100,"d":"€ 100.00"},{"$f":"SUMIF(FactuurDetails[Factuur '#],\"=\"&FacturenHoofd[[#This Row],[Factuur '#]],FactuurDetails[Totaal])","v":{"v":5200,"d":"€ 5,200.00"}},{"$f":"(FacturenHoofd[[#This Row],[Detail totaal]]*(1+FacturenHoofd[[#This Row],[Btw-tarief]]))+FacturenHoofd[[#This Row],[Overig]]-FacturenHoofd[[#This Row],[Storting]]","v":{"v":5654.999999999999,"d":"€ 5,655.00"}}]
[null,"3-456-2","2 - Contoso NV",{"$f":"TODAY()+10","v":"2019-09-12"},"Project 2",{"v":0.0875,"d":"8.75%"},null,null,{"$f":"SUMIF(FactuurDetails[Factuur '#],\"=\"&FacturenHoofd[[#This Row],[Factuur '#]],FactuurDetails[Totaal])","v":{"v":2014,"d":"€ 2,014.00"}},{"$f":"(FacturenHoofd[[#This Row],[Detail totaal]]*(1+FacturenHoofd[[#This Row],[Btw-tarief]]))+FacturenHoofd[[#This Row],[Overig]]-FacturenHoofd[[#This Row],[Storting]]","v":{"v":2190.225,"d":"€ 2,190.23"}}]
[null,"Totalen",{"$f":"\"Totaal aantal facturen: \"&SUBTOTAL(103,FacturenHoofd[Factuur '#])","v":"Totaal aantal facturen: 2"},{"$nulls":3},{"$f":"SUBTOTAL(109,FacturenHoofd[Overig])","v":{"v":100,"d":"€ 100.00"}},{"$f":"SUBTOTAL(109,FacturenHoofd[Storting])","v":{"v":100,"d":"€ 100.00"}},{"$f":"SUBTOTAL(109,FacturenHoofd[Detail totaal])","v":{"v":7214,"d":"€ 7,214.00"}},{"$f":"SUBTOTAL(109,FacturenHoofd[Factuurtotaal])","v":{"v":7845.2249999999985,"d":"€ 7,845.23"}}]

{"sheet":"Factuurdetails","index":3,"n_rows":40,"n_cols":8,"rows_kept":40}
[]
[null,"Factuurdetails"]
[null,"Beschrijving","Factuur #","Artikel #","Hoev.","Prijs per eenheid","Korting","Totaal"]
[null,"Factuur 3-456-1 Gegevens 1","3-456-1",1,1,{"v":1,"d":"€ 1.00"},{"v":1,"d":"€ 1.00"},{"$f":"(FactuurDetails[[#This Row],[Hoev.]]*FactuurDetails[[#This Row],[Prijs per eenheid]])-FactuurDetails[[#This Row],[Korting]]","v":{"v":0,"d":"€ 0.00"}}]
[null,"Factuur 3-456-1 Gegevens 2","3-456-1",2,2,{"v":2,"d":"€ 2.00"},{"v":2,"d":"€ 2.00"},{"$f":"(FactuurDetails[[#This Row],[Hoev.]]*FactuurDetails[[#This Row],[Prijs per eenheid]])-FactuurDetails[[#This Row],[Korting]]","v":{"v":2,"d":"€ 2.00"}}]
[null,"Factuur 3-456-1 Gegevens 3","3-456-1",3,3,{"v":3,"d":"€ 3.00"},{"v":3,"d":"€ 3.00"},{"$f":"(FactuurDetails[[#This Row],[Hoev.]]*FactuurDetails[[#This Row],[Prijs per eenheid]])-FactuurDetails[[#This Row],[Korting]]","v":{"v":6,"d":"€ 6.00"}}]
[null,"Factuur 3-456-1 Gegevens 4","3-456-1",4,4,{"v":4,"d":"€ 4.00"},{"v":4,"d":"€ 4.00"},{"$f":"(FactuurDetails[[#This Row],[Hoev.]]*FactuurDetails[[#This Row],[Prijs per eenheid]])-FactuurDetails[[#This Row],[Korting]]","v":{"v":12,"d":"€ 12.00"}}]
[null,"Factuur 3-456-1 Gegevens 5","3-456-1",5,5,{"v":5,"d":"€ 5.00"},{"v":5,"d":"€ 5.00"},{"$f":"(FactuurDetails[[#This Row],[Hoev.]]*FactuurDetails[[#This Row],[Prijs per eenheid]])-FactuurDetails[[#This Row],[Korting]]","v":{"v":20,"d":"€ 20.00"}}]
[null,"Factuur 3-456-1 Gegevens 6","3-456-1",6,6,{"v":6,"d":"€ 6.00"},{"v":6,"d":"€ 6.00"},{"$f":"(FactuurDetails[[#This Row],[Hoev.]]*FactuurDetails[[#This Row],[Prijs per eenheid]])-FactuurDetails[[#This Row],[Korting]]","v":{"v":30,"d":"€ 30.00"}}]
[null,"Factuur 3-456-1 Gegevens 7","3-456-1",7,7,{"v":7,"d":"€ 7.00"},{"v":7,"d":"€ 7.00"},{"$f":"(FactuurDetails[[#This Row],[Hoev.]]*FactuurDetails[[#This Row],[Prijs per eenheid]])-FactuurDetails[[#This Row],[Korting]]","v":{"v":42,"d":"€ 42.00"}}]
[null,"Factuur 3-456-1 Gegevens 8","3-456-1",8,8,{"v":8,"d":"€ 8.00"},{"v":8,"d":"€ 8.00"},{"$f":"(FactuurDetails[[#This Row],[Hoev.]]*FactuurDetails[[#This Row],[Prijs per eenheid]])-FactuurDetails[[#This Row],[Korting]]","v":{"v":56,"d":"€ 56.00"}}]
[null,"Factuur 3-456-1 Gegevens 9","3-456-1",9,9,{"v":9,"d":"€ 9.00"},{"v":9,"d":"€ 9.00"},{"$f":"(FactuurDetails[[#This Row],[Hoev.]]*FactuurDetails[[#This Row],[Prijs per eenheid]])-FactuurDetails[[#This Row],[Korting]]","v":{"v":72,"d":"€ 72.00"}}]
[null,"Factuur 3-456-1 Gegevens 10","3-456-1",10,10,{"v":10,"d":"€ 10.00"},{"v":10,"d":"€ 10.00"},{"$f":"(FactuurDetails[[#This Row],[Hoev.]]*FactuurDetails[[#This Row],[Prijs per eenheid]])-FactuurDetails[[#This Row],[Korting]]","v":{"v":90,"d":"€ 90.00"}}]
[null,"Factuur 3-456-1 Gegevens 11","3-456-1",11,11,{"v":11,"d":"€ 11.00"},{"v":11,"d":"€ 11.00"},{"$f":"(FactuurDetails[[#This Row],[Hoev.]]*FactuurDetails[[#This Row],[Prijs per eenheid]])-FactuurDetails[[#This Row],[Korting]]","v":{"v":110,"d":"€ 110.00"}}]
[null,"Factuur 3-456-1 Gegevens 12","3-456-1",12,12,{"v":12,"d":"€ 12.00"},{"v":12,"d":"€ 12.00"},{"$f":"(FactuurDetails[[#This Row],[Hoev.]]*FactuurDetails[[#This Row],[Prijs per eenheid]])-FactuurDetails[[#This Row],[Korting]]","v":{"v":132,"d":"€ 132.00"}}]
[null,"Factuur 3-456-1 Gegevens 13","3-456-1",13,13,{"v":13,"d":"€ 13.00"},{"v":13,"d":"€ 13.00"},{"$f":"(FactuurDetails[[#This Row],[Hoev.]]*FactuurDetails[[#This Row],[Prijs per eenheid]])-FactuurDetails[[#This Row],[Korting]]","v":{"v":156,"d":"€ 156.00"}}]
[null,"Factuur 3-456-1 Gegevens 14","3-456-1",14,14,{"v":14,"d":"€ 14.00"},{"v":14,"d":"€ 14.00"},{"$f":"(FactuurDetails[[#This Row],[Hoev.]]*FactuurDetails[[#This Row],[Prijs per eenheid]])-FactuurDetails[[#This Row],[Korting]]","v":{"v":182,"d":"€ 182.00"}}]
[null,"Factuur 3-456-1 Gegevens 15","3-456-1",15,15,{"v":15,"d":"€ 15.00"},{"v":15,"d":"€ 15.00"},{"$f":"(FactuurDetails[[#This Row],[Hoev.]]*FactuurDetails[[#This Row],[Prijs per eenheid]])-FactuurDetails[[#This Row],[Korting]]","v":{"v":210,"d":"€ 210.00"}}]
[null,"Factuur 3-456-1 Gegevens 16","3-456-1",16,16,{"v":16,"d":"€ 16.00"},{"v":16,"d":"€ 16.00"},{"$f":"(FactuurDetails[[#This Row],[Hoev.]]*FactuurDetails[[#This Row],[Prijs per eenheid]])-FactuurDetails[[#This Row],[Korting]]","v":{"v":240,"d":"€ 240.00"}}]
[null,"Factuur 3-456-1 Gegevens 17","3-456-1",17,17,{"v":17,"d":"€ 17.00"},{"v":17,"d":"€ 17.00"},{"$f":"(FactuurDetails[[#This Row],[Hoev.]]*FactuurDetails[[#This Row],[Prijs per eenheid]])-FactuurDetails[[#This Row],[Korting]]","v":{"v":272,"d":"€ 272.00"}}]
[null,"Factuur 3-456-1 Gegevens 18","3-456-1",18,18,{"v":18,"d":"€ 18.00"},{"v":18,"d":"€ 18.00"},{"$f":"(FactuurDetails[[#This Row],[Hoev.]]*FactuurDetails[[#This Row],[Prijs per eenheid]])-FactuurDetails[[#This Row],[Korting]]","v":{"v":306,"d":"€ 306.00"}}]
[null,"Factuur 3-456-1 Gegevens 19","3-456-1",19,19,{"v":19,"d":"€ 19.00"},{"v":19,"d":"€ 19.00"},{"$f":"(FactuurDetails[[#This Row],[Hoev.]]*FactuurDetails[[#This Row],[Prijs per eenheid]])-FactuurDetails[[#This Row],[Korting]]","v":{"v":342,"d":"€ 342.00"}}]
[null,"Factuur 3-456-1 Gegevens 20","3-456-1",20,20,{"v":20,"d":"€ 20.00"},{"v":20,"d":"€ 20.00"},{"$f":"(FactuurDetails[[#This Row],[Hoev.]]*FactuurDetails[[#This Row],[Prijs per eenheid]])-FactuurDetails[[#This Row],[Korting]]","v":{"v":380,"d":"€ 380.00"}}]
[null,"Factuur 3-456-1 Gegevens 21","3-456-1",21,21,{"v":21,"d":"€ 21.00"},{"v":21,"d":"€ 21.00"},{"$f":"(FactuurDetails[[#This Row],[Hoev.]]*FactuurDetails[[#This Row],[Prijs per eenheid]])-FactuurDetails[[#This Row],[Korting]]","v":{"v":420,"d":"€ 420.00"}}]
[null,"Factuur 3-456-1 Gegevens 22","3-456-1",22,22,{"v":22,"d":"€ 22.00"},{"v":22,"d":"€ 22.00"},{"$f":"(FactuurDetails[[#This Row],[Hoev.]]*FactuurDetails[[#This Row],[Prijs per eenheid]])-FactuurDetails[[#This Row],[Korting]]","v":{"v":462,"d":"€ 462.00"}}]
[null,"Factuur 3-456-1 Gegevens 23","3-456-1",23,23,{"v":23,"d":"€ 23.00"},{"v":23,"d":"€ 23.00"},{"$f":"(FactuurDetails[[#This Row],[Hoev.]]*FactuurDetails[[#This Row],[Prijs per eenheid]])-FactuurDetails[[#This Row],[Korting]]","v":{"v":506,"d":"€ 506.00"}}]
[null,"Factuur 3-456-1 Gegevens 24","3-456-1",24,24,{"v":24,"d":"€ 24.00"},{"v":24,"d":"€ 24.00"},{"$f":"(FactuurDetails[[#This Row],[Hoev.]]*FactuurDetails[[#This Row],[Prijs per eenheid]])-FactuurDetails[[#This Row],[Korting]]","v":{"v":552,"d":"€ 552.00"}}]
[null,"Factuur 3-456-1 Gegevens 25","3-456-1",25,25,{"v":25,"d":"€ 25.00"},{"v":25,"d":"€ 25.00"},{"$f":"(FactuurDetails[[#This Row],[Hoev.]]*FactuurDetails[[#This Row],[Prijs per eenheid]])-FactuurDetails[[#This Row],[Korting]]","v":{"v":600,"d":"€ 600.00"}}]
[null,"Factuur 3-456-2 Gegevens 1","3-456-2","Z4567",39,{"v":5,"d":"€ 5.00"},null,{"$f":"(FactuurDetails[[#This Row],[Hoev.]]*FactuurDetails[[#This Row],[Prijs per eenheid]])-FactuurDetails[[#This Row],[Korting]]","v":{"v":195,"d":"€ 195.00"}}]
[null,"Factuur 3-456-2 Gegevens 2","3-456-2","Z4568",40,{"v":4,"d":"€ 4.00"},{"v":5,"d":"€ 5.00"},{"$f":"(FactuurDetails[[#This Row],[Hoev.]]*FactuurDetails[[#This Row],[Prijs per eenheid]])-FactuurDetails[[#This Row],[Korting]]","v":{"v":155,"d":"€ 155.00"}}]
[null,"Factuur 3-456-2 Gegevens 3","3-456-2","Z4569",30,{"v":6,"d":"€ 6.00"},{"v":7,"d":"€ 7.00"},{"$f":"(FactuurDetails[[#This Row],[Hoev.]]*FactuurDetails[[#This Row],[Prijs per eenheid]])-FactuurDetails[[#This Row],[Korting]]","v":{"v":173,"d":"€ 173.00"}}]
[null,"Factuur 3-456-2 Gegevens 4","3-456-2","Z4570",40,{"v":7,"d":"€ 7.00"},null,{"$f":"(FactuurDetails[[#This Row],[Hoev.]]*FactuurDetails[[#This Row],[Prijs per eenheid]])-FactuurDetails[[#This Row],[Korting]]","v":{"v":280,"d":"€ 280.00"}}]
[null,"Factuur 3-456-2 Gegevens 5","3-456-2","Z4571",10,{"v":4,"d":"€ 4.00"},null,{"$f":"(FactuurDetails[[#This Row],[Hoev.]]*FactuurDetails[[#This Row],[Prijs per eenheid]])-FactuurDetails[[#This Row],[Korting]]","v":{"v":40,"d":"€ 40.00"}}]
[null,"Factuur 3-456-2 Gegevens 6","3-456-2","Z4572",5,{"v":8,"d":"€ 8.00"},null,{"$f":"(FactuurDetails[[#This Row],[Hoev.]]*FactuurDetails[[#This Row],[Prijs per eenheid]])-FactuurDetails[[#This Row],[Korting]]","v":{"v":40,"d":"€ 40.00"}}]
[null,"Factuur 3-456-2 Gegevens 7","3-456-2","Z4573",70,{"v":6,"d":"€ 6.00"},null,{"$f":"(FactuurDetails[[#This Row],[Hoev.]]*FactuurDetails[[#This Row],[Prijs per eenheid]])-FactuurDetails[[#This Row],[Korting]]","v":{"v":420,"d":"€ 420.00"}}]
[null,"Factuur 3-456-2 Gegevens 8","3-456-2","Z4574",25,{"v":4,"d":"€ 4.00"},null,{"$f":"(FactuurDetails[[#This Row],[Hoev.]]*FactuurDetails[[#This Row],[Prijs per eenheid]])-FactuurDetails[[#This Row],[Korting]]","v":{"v":100,"d":"€ 100.00"}}]
[null,"Factuur 3-456-2 Gegevens 9","3-456-2","Z4575",5,{"v":7,"d":"€ 7.00"},{"v":3,"d":"€ 3.00"},{"$f":"(FactuurDetails[[#This Row],[Hoev.]]*FactuurDetails[[#This Row],[Prijs per eenheid]])-FactuurDetails[[#This Row],[Korting]]","v":{"v":32,"d":"€ 32.00"}}]
[null,"Factuur 3-456-2 Gegevens 10","3-456-2","Z4576",80,{"v":1,"d":"€ 1.00"},null,{"$f":"(FactuurDetails[[#This Row],[Hoev.]]*FactuurDetails[[#This Row],[Prijs per eenheid]])-FactuurDetails[[#This Row],[Korting]]","v":{"v":80,"d":"€ 80.00"}}]
[null,"Factuur 3-456-2 Gegevens 11","3-456-2","Z4577",65,{"v":7,"d":"€ 7.00"},null,{"$f":"(FactuurDetails[[#This Row],[Hoev.]]*FactuurDetails[[#This Row],[Prijs per eenheid]])-FactuurDetails[[#This Row],[Korting]]","v":{"v":455,"d":"€ 455.00"}}]
[null,"Factuur 3-456-2 Gegevens 12","3-456-2","Z4578",44,{"v":1,"d":"€ 1.00"},null,{"$f":"(FactuurDetails[[#This Row],[Hoev.]]*FactuurDetails[[#This Row],[Prijs per eenheid]])-FactuurDetails[[#This Row],[Korting]]","v":{"v":44,"d":"€ 44.00"}}]

{"sheet":"Over Deze Factuur Tracker","index":4,"n_rows":40,"n_cols":3,"rows_kept":40,"merged":[[3,1,3,7],[4,1,4,7],[5,1,5,7],[6,1,6,7],[7,2,7,7],[8,2,8,7],[9,2,9,7],[10,2,10,7],[11,2,11,7],[12,1,12,7],[13,2,13,3],[14,2,14,7],[15,1,15,7],[16,2,16,7],[17,2,17,7],[18,2,18,7],[19,2,19,7],[20,2,20,7],[21,2,21,7],[22,1,22,7],[23,1,23,7],[24,2,24,7],[25,2,25,7],[26,2,26,7],[27,2,27,7],[28,1,28,7],[29,1,29,7],[30,2,30,7],[31,2,31,7],[32,2,32,7],[33,2,33,7],[34,2,34,7],[36,2,36,7],[37,2,37,7],[38,2,38,7],[39,2,39,7]]}
[null,"Over Deze Factuur Tracker"]
[]
[]
[null,"De Factuur Tracker is ontworpen om een geschiedenis op te bouwen van klanten, facturen en factuurdetails, zodat u diverse facturen kunt opslaan zonder het creëren van diverse bestanden. U kunt de Factuur Tracker ook gebruiken om uw eerder gefactureerde gegevens te analyseren. U kunt bijvoorbeeld alle facturen voor een klant, een specifiek project of alle facturen weergeven van de laatste maand, het afgelopen jaar en meer."]
[null,"Bekijk eerst de verstrekte voorbeeldgegevens voordat u aan de slag gaat. Selecteer op het Factuur tabblad de cel rechts van Factuur # (cel L8) en er wordt een vervolgkeuzelijst weergegeven. Selecteer de vervolgkeuzepijl en selecteer vervolgens een voorbeeld factuur. U ziet dat alle factuurgegevens automatisch worden aangepast aan de geselecteerde factuur. Bekijk nu de Klanten, Factuur - Hoofd en Factuur Details werkbladen. Elk van deze werkbladen verstrekt informatie voor de factuur en alle wijzigingen die u aanbrengt, worden automatisch bijgewerkt. "]
[null,"Hoe ga ik aan de slag?"]
[null,"Wijzig het Factuur tabblad zodat het de gegevens van uw bedrijf weergeeft aan de hand van de volgende stappen:"]
[null,"1.","Navigeer naar het Factuur en in het Controleren tabblad, in de Beveiligen groep, selecteer Beveiliging blad opheffen. "]
[null,null,"Opmerking: Het factuur tabblad is beveiligd om onbedoelde wijzigingen te voorkomen, omdat de meeste gegevens in dit werkblad, zoals eerder vermeld, worden opgehaald uit alle andere werkbladen in de werkmap. "]
[null,"2.","Pas de factuurkoptekst aan door te typen in uw Bedrijfsnaam, Adres, Plaats, Postcode, e-mailadres, website, enzovoort. Wijzig de betalingsinstructies onder aan de factuur (rij 43). "]
[null,null,"Belangrijk! Wijzig de betalings- of factuurgegevens niet. Al deze cellen bevatten formules die de factuur automatisch bijwerken, zoals vermeld in de  Over Deze Factuur Tracker sectie.  "]
[null,"3.","(Optioneel) De kleuren door heel de werkmap heen wijzigen: Klik op het tabblad Pagina-indelling in de Thema's groep op Kleuren en selecteer een andere thema kleurset in de galerie kleuren. "]
[null,"Tip: Maak een aangepaste themakleur set die is gekoppeld aan de huisstijl van uw bedrijf! Dit doet u door op het Pagina-indelling tabblad in de groep Thema's Kleuren te selecteren en selecteer vervolgens Kleuren Aanpassen. Voor meer informatie omtrent het creëren van een kleurenset, bekijk het volgend Help-onderwerp: "]
[null,null,"Een documentthema aanpassen."]
[null,"4.","Wanneer u de gewenste wijzigingen hebt aangebracht, gaat u terug naar het Factuur tabblad en klikt u op het tabblad Controle, in de groep Wijzigingen, op Blad Beveiligen en selecteer vervolgens OK. Wanneer het Factuur tabblad is beveiligd, is de enige cel die u kunt selecteren de cel met de vervolgkeuzelijst Factuur #."]
[null,"Hoe maak ik een factuur?"]
[null,"1.","Voer op het tabblad Klanten klantgegevens in, zoals de naam en het adres van het bedrijf. Merk op dat het Bedrijf # een belangrijke invoer is, omdat het gepaard gaat met een unieke identiteit voor elk bedrijf, welke wordt gebruikt door de Factuur Tracker. Houd er ook rekening mee dat u slechts één keer een bedrijf hoeft toe te voegen. Deze stap kan worden overgeslagen voor volgende facturen aan hetzelfde bedrijf. "]
[null,null,"Opmerking: Als u hetzelfde nummer toewijst aan meer dan één Bedrijf of dezelfde Bedrijfsnaam meer dan één keer invoert, worden de gegevens rood om u te waarschuwen voor duplicatie. "]
[null,"2.","Op het Facuren - Hoofdwerkblad voert u de primaire gegevens voor uw factuur in, zoals Factuurnummer, Factuurdatum en Projectomschrijving. Merk op dat zoals het Bedrijf #, de Factuur # een belangrijke invoer is, omdat het gepaard gaat met een unieke identiteit voor elk bedrijf, welke wordt gebruikt door de Factuur Tracker. Een ander belangrijke invoer is het Bedrijf. Wanneer u een bedrijf selecteert in de vervolgkeuzelijst, wordt de factuur gekoppeld aan dat bedrijf. Wanneer u vervolgens een Factuur # selecteert op het Factuur tabblad, worden de bedrijfsgegevens, zoals bedrijfsnaam en adres, automatisch ingevuld op de Factuur."]
[null,null,"Opmerking: Als u hetzelfde nummer toewijst aan meer dan één Factuur, worden de gegevens rood om u te waarschuwen voor duplicatie. "]
[null,"3.","Op het tabblad Factuurgegevens voert u de gegevens voor de factuur in, zoals een Artikelbeschrijving, Artikel #, Hoev. en Prijs per Eenheid. In de Factuur # vervolgkeuzelijst ziet u een lijst met facturen die u hebt ingevoerd op het Facturen - Hoofdtabblad om gegevensinvoer te vergemakkelijken. Net zoals bij het Bedrijf # in de vorige stap wordt met de Factuur # het artikeldetail aan een bepaalde factuur gekoppeld. Wanneer u een Factuur # selecteert op het Factuur tabblad van de Factuur # vervolgkeuzelijst, worden de gerelateerde factuur detail items voor die factuur weergegeven."]
[null,null,"Opmerking: U bent beperkt tot 25 artikeldetails per factuur. Als er meer dan 25 artikelen worden toegevoegd, worden alle bijbehorende vermeldingen rood om u op de hoogte te brengen van deze beperking. Als u meer dan 25 factuuritems hebt, moet u een tweede factuur maken. "]
[null,"Hoe voeg ik meer klant-, factuur- en factuurgegevens toe?"]
[null,"De gegevens voor Klanten, Facturen en Factuurgegevens worden opgeslagen in Excel-tabellen. Wanneer u een nieuwe rij aan een tabel toevoegt, wordt de zojuist toegevoegde rij automatisch opgemaakt en worden eventuele berekeningen gekopieerd. Ga op een van de volgende manieren te werk om nieuwe tabelrijen toe te voegen:"]
[null,"● ","Begin onder een tabel te typen als de tabel geen Totaalrij heeft. Deze wordt dan automatisch uitgebreid wanneer u op de Enter- of Tab-toets drukt."]
[null,"● ","Plaats uw celaanwijzer in de laatste cel boven de Totaalrij, zoals in het totaal Facturen tabel in de cel Opmerkingen ten aanzien van de laatste factuur, en druk vervolgens op de Tab-toets."]
[null,"● ","Klik op het tabblad Start in de groep Cellen op Invoegen en selecteer vervolgens Tabelrijen Boven of Tabelrijen Onder.  "]
[null,"● ","Plaats uw muis in de rechterbenedenhoek van de tabel op de formaatgreep van de tabel en sleep hem omlaag om het aantal beschikbare tabelrijen te vergroten."]
[null,"Hoe kan ik mijn factuurgegevens analyseren?"]
[null,"Zoals vermeld in de sectie Over de Factuur Tracker, kunt u na het invoeren van verschillende facturen een lijst weergeven met alle facturen voor een bepaalde klant, project, een opgegeven datuminterval en nog veel meer. Deze type analyse wordt uitgevoerd met een Filter, waarmee u snel een lijst met gegevens kunt verkleinen. Als u een Filter wilt gebruiken op de tabellen Klanten, Facturen of Factuurgegevens, selecteert u een vervolgkeuzepijl naast de naam van een tabelveld. Een Filter deelvenster wordt weergegeven met diverse filteropties. Hier volgen enkele filtervoorbeelden om u op weg te helpen:"]
[null,"● ","Om het totale bedrag dat u hebt gefactureerd aan een bepaalde klant te weergeven: Selecteer de vervolgkeuzepijl op het Facturen - Hoofdwerkblad aan de rechterkant van het veld Bedrijf #. Klik in het deelvenster Filter op Alles selecteren om alle bedrijven te deselecteren, selecteer het gewenste bedrijf en vervolgens OK. "]
[null,null,"Tip: In het Filter deelvenster kunt u ook de naam van de klant in het tekstvak Zoeken typen om snel in de beschikbare lijst te zoeken."]
[null,"● ","Om alle facturen voor een bepaalde klant en een specifiek project te weergeven: Begin met het filteren van de gewenste klant aan de hand van de stappen in het vorige voorbeeld. Vervolgens selecteert u de vervolgkeuzepijl rechts van Project #. Selecteer in het deelvenster Filter het gewenste project of de gewenste projecten en selecteer vervolgens OK. "]
[null,"● ","Om alle facturen van de vorige maand te weergeven: Op het Facturen - Hoofdtabblad, rechts van het veld Factuurdatum, selecteert u de vervolgkeuzepijl, wijst u Datum Filters aan en selecteert u vervolgens Vorige Maand."]
[null,"● ","Om alle klanten met hetzelfde netnummer te weergeven: Selecteer de vervolgkeuzepijl op het Klanten tabblad aan de rechterkant van het veld Telefoon. Klik in het deelvenster Filter in het tekstvak Zoeken, typ het netnummer in en selecteer vervolgens OK. "]
[null,"Filter Tips"]
[null,"● ","Als een tabel een totaalrij bevat, zoals Klanten en Facturen, worden de berekende totalen alleen weerspiegeld in de gefilterde lijst."]
[null,"● ","Gebruik meerdere filters voor één veld of meerdere velden om de resultaten te verfijnen."]
[null,"● ","Als u één filter wilt wissen, selecteert u de vervolgkeuzepijl voor een eerder gefilterde kolom en selecteert u daarna Filter uit Artikel < veld naam >."]
[null,"● ","Als u meerdere filters tegelijk wilt verwijderen, plaatst u de muisaanwijzer in de tabel op het tabblad Start in de groep Bewerken, selecteer Sorteren en filteren selecteer vervolgens Wissen."]